bitfinex/quotes_ETHUSD_20240928
["timestamp","ask_amount","ask_price","bid_price","bid_amount"]
[1727537653592,0.06409023,2676.0,2675.9,6.06168152]
[1727537653914,0.7741,2676.6,2676.2,3.73662]
[1727537654213,4.5102,2676.6,2676.2,1.56922152]
[1727537654510,0.7741,2676.6,2676.2,5.30585152]
[1727537655269,0.7741,2676.6,2676.2,3.73663]
[1727537655472,0.06337016,2676.5,2676.2,3.73663]
[1727537659388,0.06337016,2676.5,2676.2,4.73889097]
[1727537659797,0.06337016,2676.5,2676.3,0.8094]
[1727537659997,0.06337016,2676.5,2676.3,4.5458]
[1727537660226,0.7587,2676.8,2676.3,4.5458]
[1727537660671,0.06337016,2676.7,2676.3,4.5458]
[1727537660879,0.7587,2676.8,2676.4,0.98516515]
[1727537661079,0.06337016,2676.7,2676.4,0.98516515]
[1727537661380,0.7587,2676.8,2676.4,0.98516515]
[1727537661580,0.06337016,2676.6,2676.4,0.98516515]
[1727537661786,0.7587,2676.8,2676.5,0.55309652]
[1727537662113,0.7587,2676.8,2676.4,0.98516515]
[1727537662423,0.06337016,2676.7,2676.3,4.5458]
[1727537662782,0.7587,2676.8,2676.3,4.5458]
[1727537662980,0.06337016,2676.6,2676.3,4.5458]
[1727537663185,0.7587,2676.8,2676.3,4.5458]
[1727537663391,0.06337016,2676.5,2676.4,0.828243]
[1727537663587,0.7587,2676.8,2676.3,4.5458]
[1727537663792,0.06337016,2676.5,2676.3,4.5458]
[1727537664088,0.06386619,2676.4,2676.3,4.5458]
[1727537664318,0.7587,2676.8,2676.3,5.374043]
[1727537664615,0.06386619,2676.7,2676.3,5.374043]
[1727537664925,0.7587,2676.8,2676.3,5.374043]
[1727537665075,0.06386619,2676.7,2676.3,5.374043]
[1727537665278,0.7587,2676.8,2676.4,0.9110673]
[1727537665480,0.06386619,2676.7,2676.4,0.9110673]
[1727537665679,0.7587,2676.8,2676.4,0.9110673]
[1727537665920,0.06386619,2676.7,2676.4,0.9110673]
[1727537666220,0.7587,2676.8,2676.4,0.9110673]
[1727537666384,0.06386619,2676.6,2676.4,0.9110673]
[1727537666712,0.7587,2676.8,2676.4,0.9110673]
[1727537666713,0.06386619,2676.5,2676.4,4.6474273]
[1727537666923,0.7587,2676.8,2676.4,3.73636]
[1727537667082,4.51905,2677.2,2676.7,7.47168]
[1727537667420,4.51905,2677.2,2676.7,7.47167]
[1727537668491,4.51905,2677.2,2676.7,3.73582]
[1727537668683,4.51905,2677.2,2676.7,7.47167]
[1727537669195,4.51905,2677.2,2676.7,3.73582]
[1727537670603,0.06386619,2677.1,2676.7,3.73582]
[1727537670808,0.06386619,2677.1,2676.7,4.560365]
[1727537671411,0.06386619,2677.1,2676.7,8.296225]
[1727537671584,0.06386619,2677.1,2676.7,4.560365]
[1727537672021,0.06386619,2677.1,2676.7,8.296225]
[1727537672185,0.06386619,2677.1,2676.7,4.560365]
[1727537672386,0.06386619,2677.1,2676.8,0.4560365]
[1727537676331,0.06386619,2677.1,2676.8,4.1918165]
[1727537677693,0.06386619,2677.1,2676.8,0.4560365]
[1727537677893,0.06386619,2677.1,2676.7,4.560365]
[1727537682296,0.06386619,2677.1,2676.7,3.73582]
[1727537683812,0.06386619,2677.1,2676.8,0.7743]
[1727537690008,3.79925619,2677.1,2676.8,0.7743]
[1727537696618,7.53472619,2677.1,2676.8,0.7743]
[1727537696819,3.79925619,2677.1,2676.8,0.7743]
[1727537698839,7.53471619,2677.1,2676.8,0.7743]
[1727537699344,3.79925619,2677.1,2676.8,0.7743]
[1727537699852,3.73552,2677.0,2676.8,0.7743]
[1727537700350,0.0649832,2676.9,2676.8,0.7743]
[1727537703329,3.73589,2676.8,2676.5,0.7795]
[1727537703531,3.73597,2676.7,2676.3,0.7795]
[1727537703952,3.80114521,2676.6,2676.3,0.7795]
[1727537704151,3.73634,2676.5,2676.1,0.7795]
[1727537704358,7.53760723,2676.5,2676.1,0.7795]
[1727537704557,3.73644,2676.4,2676.1,0.7795]
[1727537704914,0.06491923,2676.3,2676.1,0.7795]
[1727537705829,3.73634,2676.5,2676.1,0.7795]
[1727537706054,0.06470331,2676.2,2676.1,0.7795]
[1727537706253,3.73634,2676.5,2676.1,0.7795]
[1727537706771,0.06463933,2676.4,2676.1,0.7795]
[1727537707463,3.80112933,2676.4,2676.1,0.7795]
[1727537707770,4.64722909,2676.3,2675.8,4.51663]
[1727537707980,3.80119133,2676.3,2675.8,4.51663]
[1727537708572,7.53777133,2676.3,2675.8,0.7795]
[1727537708769,3.80119133,2676.3,2675.8,0.7795]
[1727537710867,3.73672,2676.2,2675.8,0.7795]
[1727537711472,0.06463133,2676.1,2675.8,0.7795]
[1727537712865,0.06463133,2676.1,2675.8,5.12528615]
[1727537713098,3.73656,2676.3,2675.8,5.12528615]
[1727537713457,0.06463133,2676.2,2675.8,5.12528615]
[1727537713694,3.73666,2676.2,2675.8,1.38809615]
[1727537713897,0.06463133,2676.1,2675.8,1.38809615]
[1727537716480,0.06463133,2676.1,2675.8,0.7795]
[1727537719761,0.06463133,2676.1,2675.7,3.73724]
[1727537721591,0.06463133,2676.1,2675.7,7.47449]
[1727537721793,7.47315,2676.3,2675.7,3.73724]
[1727537722002,0.0640235,2676.0,2675.7,3.73724]
[1727537722187,3.73672,2676.2,2675.7,3.73724]
[1727537722382,0.0640235,2675.9,2675.7,5.02492815]
[1727537722587,3.73672,2676.2,2675.7,5.02492815]
[1727537723270,0.0640235,2676.1,2675.7,5.02492815]
[1727537723495,3.73656,2676.3,2675.7,5.02492815]
[1727537723997,3.8006735,2676.2,2675.7,5.02492815]
[1727537724364,3.8006735,2676.2,2675.8,0.74270497]
[1727537725985,0.0640235,2676.2,2675.8,0.74270497]
[1727537726211,3.73656,2676.3,2675.9,0.7537]
[1727537726387,0.06188938,2676.1,2675.9,0.7537]
[1727537726584,3.73656,2676.3,2675.9,0.7537]
[1727537726799,0.06188938,2676.0,2675.9,0.7537]
[1727537726999,3.7363,2676.5,2676.0,3.73681]
[1727537727322,3.7363,2676.5,2676.1,4.49048]
[1727537730617,0.0617774,2676.4,2676.1,4.49048]
[1727537731118,0.0617774,2676.4,2676.1,0.7537]
[1727537732718,3.7982274,2676.4,2676.1,0.7537]
[1727537739416,3.73661,2676.3,2676.1,0.7537]
[1727537739625,3.7984674,2676.3,2676.1,0.7537]
[1727537740500,3.7984574,2676.3,2676.1,0.7537]
[1727537742742,0.0618574,2676.3,2676.1,0.7537]
[1727537745651,3.7983874,2676.3,2676.1,0.7537]
[1727537747821,0.0618574,2676.3,2676.1,0.7537]
[1727537759556,3.7983874,2676.3,2676.1,0.7537]
[1727537759743,0.0618574,2676.3,2676.1,0.7537]
[1727537760064,3.73618,2676.6,2676.1,0.7537]
[1727537760065,3.73637,2676.4,2676.1,0.7537]
[1727537760294,0.0617214,2676.2,2676.1,0.7537]
[1727537760433,3.73637,2676.4,2676.1,0.7537]
[1727537760764,0.0617214,2676.2,2675.8,4.49793]
[1727537760927,7.5348514,2676.3,2675.9,1.123525]
[1727537761132,3.73691,2676.1,2675.7,3.0]
[1727537761345,3.73694,2676.0,2675.7,3.0]
[1727537761541,0.0616974,2675.9,2675.7,3.0]
[1727537762265,3.73691,2676.1,2675.7,3.0]
[1727537762455,0.0616974,2675.8,2675.7,3.0]
[1727537762657,3.73691,2676.1,2675.7,3.0]
[1727537762855,0.0616974,2675.8,2675.7,3.0]
[1727537763066,3.73691,2676.1,2675.7,3.0]
[1727537763231,0.0616974,2675.8,2675.7,3.0]
[1727537763430,3.73691,2676.1,2675.7,3.0]
[1727537763668,0.0616974,2675.8,2675.7,3.0]
[1727537763884,3.73691,2676.1,2675.7,3.95161171]
[1727537764069,0.0616974,2675.8,2675.7,3.0]
[1727537764367,4.51191,2676.2,2675.7,3.95159948]
[1727537764666,0.0616974,2675.8,2675.7,8.31065203]
[1727537764972,4.51191,2676.2,2675.7,9.26225393]
[1727537765170,0.0616974,2675.8,2675.7,8.31065203]
[1727537765337,0.0616974,2675.8,2675.7,10.68963548]
[1727537765539,4.51191,2676.2,2675.7,10.68963548]
[1727537765766,0.0616974,2675.8,2675.7,8.31065203]
[1727537765950,4.51191,2676.2,2675.7,6.95241441]
[1727537766155,0.0616974,2676.1,2675.8,3.73718]
[1727537766554,0.0616974,2676.1,2675.8,8.7551762]
[1727537766967,4.51165,2676.4,2675.8,5.0179962]
[1727537767238,0.0616974,2676.0,2675.8,7.47424]
[1727537767471,3.73654,2676.3,2675.8,7.47424]
[1727537767640,3.73654,2676.3,2675.8,3.73712]
[1727537767641,0.05934662,2675.9,2675.8,3.73712]
[1727537767835,3.73654,2676.3,2675.8,4.68874288]
[1727537768031,3.73654,2676.3,2675.9,0.673712]
[1727537768274,4.51165,2676.4,2676.0,0.7608]
[1727537768579,3.73651,2676.3,2676.0,0.7608]
[1727537771866,0.7752,2676.4,2676.0,0.7608]
[1727537772064,3.73623,2676.5,2676.1,3.73677]
[1727537772248,3.73623,2676.5,2676.0,5.10440715]
[1727537772453,3.73609,2676.6,2676.1,3.73669]
[1727537772650,4.34413615,2676.6,2676.1,3.73669]
[1727537775355,0.60804615,2676.6,2676.0,4.4977]
[1727537775541,3.73622,2676.5,2676.0,8.23452]
[1727537775737,3.79561467,2676.5,2676.0,4.49762]
[1727537775943,3.79561467,2676.5,2676.1,3.73675]
[1727537788760,0.05939467,2676.5,2676.1,3.73675]
[1727537788964,0.05939467,2676.5,2676.1,4.560148]
[1727537789194,3.73611,2676.6,2676.1,4.560148]
[1727537789489,0.05960287,2676.4,2676.1,4.560148]
[1727537789693,0.05978705,2676.5,2676.1,8.296838]
[1727537789856,3.73611,2676.6,2676.1,4.560148]
[1727537790056,0.05978705,2676.4,2676.1,4.560148]
[1727537790362,3.73611,2676.6,2676.1,4.560148]
[1727537790563,0.05978705,2676.3,2676.1,4.560148]
[1727537790888,3.73611,2676.6,2676.2,0.64660159]
[1727537791056,3.73611,2676.6,2676.1,8.296828]
[1727537791396,0.7752,2676.7,2676.1,8.296828]
[1727537791397,3.73597,2676.7,2676.2,2.32922152]
[1727537791690,3.73583,2676.8,2676.3,0.68893595]
[1727537791872,3.73583,2676.8,2676.2,6.06578152]
[1727537792652,3.73583,2676.8,2676.3,3.73646]
[1727537797463,7.47175,2676.8,2676.3,3.73646]
[1727537797880,3.73583,2676.8,2676.3,3.73646]
[1727537798090,7.47172,2676.8,2676.3,3.73646]
[1727537798262,3.73583,2676.8,2676.3,3.73646]
[1727537799463,7.47175,2676.8,2676.3,3.73646]
[1727537800002,7.47172,2676.8,2676.3,3.73646]
[1727537801405,3.73594,2676.7,2676.3,3.73646]
[1727537801605,3.73579,2676.9,2676.3,4.14988638]
[1727537801810,3.73588,2676.8,2676.3,4.14988638]
[1727537805815,0.0600753,2676.7,2676.3,4.14988638]
[1727537806226,3.73588,2676.8,2676.3,4.14988638]
[1727537806544,3.73588,2676.8,2676.3,4.14984638]
[1727537806676,0.0602034,2676.7,2676.3,4.14984638]
[1727537806874,3.73588,2676.8,2676.3,4.14984638]
[1727537807107,0.06023542,2676.7,2676.3,4.14984638]
[1727537807579,3.73588,2676.8,2676.3,4.14984638]
[1727537807780,0.06023542,2676.6,2676.3,4.14984638]
[1727537807992,0.06023542,2676.6,2676.4,0.64790679]
[1727537808196,3.73583,2676.8,2676.4,0.64790679]
[1727537808396,0.06023542,2676.5,2676.4,4.55896]
[1727537808617,3.7357,2676.9,2676.4,4.55896]
[1727537808917,3.7357,2676.9,2676.4,6.12818152]
[1727537809077,0.06021941,2676.8,2676.7,0.8226]
[1727537809280,4.12605434,2677.4,2676.7,5.54434367]
[1727537809590,0.8133,2677.5,2677.0,0.8226]
[1727537809591,3.73531,2677.2,2677.0,0.8226]
[1727537809793,0.06021941,2677.3,2677.0,0.8226]
[1727537809794,3.79544941,2677.3,2677.0,0.8226]
[1727537809991,3.79544941,2677.3,2676.7,1.56922152]
[1727537809992,3.73538,2677.1,2676.8,0.8226]
[1727537810307,0.06043554,2677.0,2676.8,0.8226]
[1727537812525,3.73529,2677.2,2676.8,0.8226]
[1727537812710,3.73529,2677.2,2676.6,3.0]
[1727537812711,0.06043554,2676.9,2676.6,3.0]
[1727537812892,0.8133,2677.1,2676.6,3.0]
[1727537813223,0.06053158,2677.0,2676.6,3.0]
[1727537813589,3.79606158,2677.0,2676.6,3.0]
[1727537813790,0.06053158,2677.0,2676.6,3.0]
[1727537814025,0.06053158,2677.0,2676.6,3.755875]
[1727537815384,0.06053158,2677.0,2676.6,0.755875]
[1727537816910,0.06053158,2677.0,2676.6,4.491945]
[1727537820307,0.06053158,2677.0,2676.6,0.755875]
[1727537820509,0.06053158,2677.0,2676.6,4.491945]
[1727537824042,3.73574,2676.9,2676.5,0.8226]
[1727537824265,2.40122152,2676.8,2676.3,4.5452]
[1727537824433,2.46199323,2676.8,2676.3,4.5452]
[1727537824806,2.46199323,2676.8,2676.4,3.73633]
[1727537825305,2.46199323,2676.8,2676.5,3.73617]
[1727537825529,2.46199323,2676.8,2676.4,3.73633]
[1727537826643,2.46199323,2676.8,2676.4,3.73627]
[1727537830112,2.46199323,2676.8,2676.5,3.73621]
[1727537830616,0.89277171,2676.8,2676.4,3.73627]
[1727537836436,0.89277171,2676.8,2676.4,7.47256]
[1727537836640,0.89277171,2676.8,2676.4,3.73627]
[1727537838857,0.89277171,2676.8,2676.4,7.47255]
[1727537839167,0.89277171,2676.8,2676.4,3.73627]
[1727537843884,2.46199323,2676.8,2676.3,0.8088]
[1727537844088,3.73623,2676.5,2676.1,0.7968]
[1727537844427,0.06028344,2676.4,2676.0,3.73683]
[1727537844744,0.06028344,2676.4,2675.9,4.53378]
[1727537844745,1.62950496,2676.4,2675.9,4.53378]
[1727537845080,5.36588496,2676.4,2675.9,4.53378]
[1727537846059,0.06028344,2676.4,2676.0,3.73691]
[1727537846263,1.56922152,2676.2,2675.8,11.18712]
[1727537846472,1.56922152,2676.2,2675.6,5.35497026]
[1727537846473,3.73686,2676.1,2675.6,5.35497026]
[1727537846654,0.06008328,2676.0,2675.6,8.30668]
[1727537846872,5.30593152,2676.2,2675.6,8.30668]
[1727537847059,0.06007528,2676.1,2675.6,4.56928]
[1727537847267,0.06007528,2676.1,2675.7,3.73732]
[1727537848795,0.06007528,2676.1,2675.6,4.56928]
[1727537849100,5.30593152,2676.2,2675.6,5.40474703]
[1727537849259,0.06007528,2676.1,2675.7,3.73733]
[1727537851687,0.06007528,2676.1,2675.8,3.73713]
[1727537852009,0.7871,2676.3,2675.8,5.0250507]
[1727537852211,0.05940267,2676.0,2675.8,5.0250507]
[1727537852507,4.52361,2676.3,2675.8,5.0250507]
[1727537852712,0.05940267,2676.2,2675.8,3.73713]
[1727537852867,4.52361,2676.3,2675.8,3.73713]
[1727537853071,0.05940267,2676.2,2675.8,3.73713]
[1727537853310,4.52361,2676.3,2675.8,3.73713]
[1727537853505,0.05940267,2676.2,2675.8,3.73713]
[1727537853709,4.52361,2676.3,2675.8,3.73713]
[1727537853895,0.05940267,2676.2,2675.8,3.73713]
[1727537854214,4.52361,2676.3,2675.8,3.73713]
[1727537854813,0.05940267,2676.2,2675.8,3.73713]
[1727537855307,4.52361,2676.3,2675.8,3.73713]
[1727537855616,0.05940267,2676.2,2675.8,3.73713]
[1727537856001,4.52361,2676.3,2675.8,3.73713]
[1727537856203,0.05940267,2676.1,2675.8,3.73713]
[1727537856403,4.52361,2676.3,2675.8,3.73713]
[1727537856919,0.05940267,2676.2,2675.8,3.73713]
[1727537857106,4.52361,2676.3,2675.8,3.73713]
[1727537857303,0.05940267,2676.2,2675.8,3.73713]
[1727537857611,4.52361,2676.3,2675.8,3.73713]
[1727537857817,0.05940267,2676.1,2675.8,3.73713]
[1727537858115,0.05940267,2676.0,2675.8,3.73713]
[1727537858314,4.52361,2676.3,2675.8,3.73713]
[1727537858476,0.05940267,2676.2,2675.8,3.73713]
[1727537858682,4.52361,2676.3,2675.7,3.73733]
[1727537858683,4.52361,2676.3,2675.7,3.73724]
[1727537858921,0.05940267,2676.2,2675.7,4.5777127]
[1727537859308,0.05940267,2676.2,2675.8,3.73719]
[1727537859613,4.52361,2676.3,2675.8,3.73719]
[1727537859817,0.05940267,2676.1,2675.8,3.73719]
[1727537860115,0.05940267,2676.0,2675.8,3.73719]
[1727537860274,4.52361,2676.3,2675.8,3.73719]
[1727537860481,0.05940267,2676.2,2675.8,3.73719]
[1727537860795,4.52361,2676.3,2675.8,3.73719]
[1727537861294,0.05940267,2676.2,2675.8,3.73719]
[1727537861480,4.52361,2676.3,2675.8,3.73719]
[1727537861814,0.05940267,2676.2,2675.8,3.73719]
[1727537862112,4.52361,2676.3,2675.8,3.73719]
[1727537862315,0.05945074,2676.2,2675.8,3.73719]
[1727537862513,4.52361,2676.3,2675.8,3.73719]
[1727537862814,0.05945074,2676.2,2675.8,3.73719]
[1727537863184,4.52361,2676.3,2675.8,3.73719]
[1727537863389,0.05945074,2676.1,2675.8,3.73719]
[1727537863693,0.05945074,2676.0,2675.8,3.73719]
[1727537864000,4.52361,2676.3,2675.8,3.73719]
[1727537864212,0.05945074,2675.9,2675.8,4.6513957]
[1727537864385,4.52361,2676.3,2675.8,3.73719]
[1727537864588,0.05945074,2675.9,2675.8,3.73719]
[1727537864792,4.52361,2676.3,2675.8,3.73719]
[1727537864990,0.05945074,2675.9,2675.8,3.73719]
[1727537865232,4.52361,2676.3,2675.8,4.6513957]
[1727537865435,0.05945074,2675.9,2675.8,4.6513957]
[1727537865586,4.52361,2676.3,2675.8,4.6513957]
[1727537865793,0.05945074,2675.9,2675.8,3.73719]
[1727537865993,4.52361,2676.3,2675.8,3.73719]
[1727537866210,0.05945074,2675.9,2675.8,3.73719]
[1727537866412,4.52361,2676.3,2676.0,3.73681]
[1727537866413,0.7871,2676.3,2676.0,3.73681]
[1727537866703,4.5236,2676.3,2675.8,7.47417]
[1727537867103,0.7871,2676.3,2675.9,3.73705]
[1727537870130,4.5236,2676.3,2675.9,3.73705]
[1727537871205,0.7871,2676.3,2675.9,3.73705]
[1727537872696,4.52362,2676.3,2675.9,3.73705]
[1727537873133,3.73671,2676.2,2675.7,3.73732]
[1727537873427,4.50128,2676.1,2675.7,3.73732]
[1727537876336,4.50128,2676.1,2675.6,3.7374]
[1727537876502,4.50128,2676.1,2675.6,4.60971119]
[1727537877299,0.7645,2676.1,2675.7,3.73731]
[1727537878947,0.7645,2676.1,2675.7,7.47457]
[1727537879506,0.7645,2676.1,2675.8,3.73714]
[1727537880835,0.05934662,2676.0,2675.8,3.73714]
[1727537881045,0.05934662,2676.0,2675.8,4.57181112]
[1727537881342,0.7645,2676.1,2675.8,0.83467112]
[1727537881542,0.05934662,2676.0,2675.8,0.83467112]
[1727537883335,0.05934662,2676.0,2675.8,4.57186112]
[1727537884151,0.7716,2676.3,2675.8,3.73719]
[1727537884327,0.0594427,2676.2,2675.8,3.73719]
[1727537884646,6.07739152,2676.3,2675.8,3.73719]
[1727537884825,0.0594427,2676.1,2675.8,3.73719]
[1727537885153,0.0594427,2676.0,2675.8,3.73719]
[1727537885461,6.07739152,2676.3,2675.8,3.73719]
[1727537885962,0.0594427,2676.2,2675.8,3.73719]
[1727537886162,6.07739152,2676.3,2675.8,3.73719]
[1727537886462,0.0594427,2676.2,2675.8,3.73719]
[1727537886862,6.07739152,2676.3,2675.8,3.73719]
[1727537887062,0.0594427,2676.1,2675.8,3.73719]
[1727537887261,6.07739152,2676.3,2675.8,3.73719]
[1727537887642,0.0594427,2676.2,2675.8,3.73719]
[1727537887969,0.7716,2676.3,2675.9,3.73697]
[1727537888165,0.05945872,2676.2,2675.9,3.73697]
[1727537888462,0.7716,2676.3,2675.9,3.73697]
[1727537888653,0.05947474,2676.1,2675.9,3.73697]
[1727537888820,0.7716,2676.3,2675.9,3.73697]
[1727537889021,0.05947474,2676.0,2675.9,3.73697]
[1727537889222,0.7716,2676.3,2675.9,3.73697]
[1727537889223,0.7716,2676.3,2675.9,4.68856958]
[1727537889490,0.05947474,2676.0,2675.9,3.73697]
[1727537889754,0.05947474,2676.0,2675.9,6.11677609]
[1727537889944,0.7716,2676.3,2675.9,5.13033564]
[1727537890145,0.05947474,2676.2,2675.9,3.73697]
[1727537890343,0.7716,2676.3,2675.9,3.73697]
[1727537890521,0.05947474,2676.2,2675.9,3.73697]
[1727537890721,0.7716,2676.3,2675.9,3.73697]
[1727537891059,0.05947474,2676.2,2675.9,3.73697]
[1727537891435,0.7716,2676.3,2675.9,3.73697]
[1727537891632,0.05947474,2676.1,2676.0,0.95210001]
[1727537891854,0.05947474,2676.1,2675.9,3.73697]
[1727537891855,0.7716,2676.3,2675.9,3.73697]
[1727537892062,0.05947474,2676.1,2675.9,4.76228057]
[1727537892263,0.7716,2676.3,2676.0,0.95209408]
[1727537892428,0.7716,2676.3,2675.9,3.73697]
[1727537893167,0.7716,2676.3,2676.0,0.95208488]
[1727537893378,0.7716,2676.3,2676.0,3.7369]
[1727537895677,0.05947474,2676.2,2676.0,3.7369]
[1727537896041,0.7716,2676.3,2676.0,3.7369]
[1727537896262,0.05947474,2676.1,2676.0,3.7369]
[1727537896470,0.7716,2676.3,2676.0,5.60564384]
[1727537896680,0.05947474,2676.1,2676.0,4.65362273]
[1727537897009,0.05947474,2676.1,2676.0,6.37506294]
[1727537897138,3.73637,2676.4,2676.0,6.37506294]
[1727537897341,0.05947474,2676.3,2676.0,4.5063]
[1727537900140,0.05947474,2676.3,2676.0,0.7694]
[1727537908101,1.56922152,2676.2,2675.8,0.7694]
[1727537908318,2.40022152,2676.0,2675.9,0.95190736]
[1727537908503,2.40022152,2676.0,2675.6,5.29248026]
[1727537908690,2.45981638,2676.0,2675.7,2.37981047]
[1727537909039,2.40022152,2676.0,2675.8,0.95192419]
[1727537909189,2.40022152,2676.0,2675.6,5.29248026]
[1727537909392,0.05959486,2675.9,2675.7,2.37974685]
[1727537909621,0.05959486,2675.9,2675.8,0.95189874]
[1727537909794,0.05959486,2675.9,2675.8,0.95189385]
[1727537911388,0.05959486,2675.9,2675.8,4.68909385]
[1727537911742,0.831,2676.2,2675.8,4.68909385]
[1727537912079,0.831,2676.2,2675.8,3.7372]
[1727537912229,0.05947473,2676.1,2675.8,3.7372]
[1727537912592,0.05947473,2676.1,2675.8,4.77225208]
[1727537915957,4.56764,2676.2,2675.8,4.77225208]
[1727537916144,0.05947473,2676.1,2675.8,3.7372]
[1727537916648,4.56764,2676.2,2675.8,3.7372]
[1727537917011,0.05947473,2676.1,2675.8,3.7372]
[1727537917412,4.56764,2676.2,2675.8,3.7372]
[1727537917823,0.831,2676.2,2675.8,3.7372]
[1727537918013,0.05947473,2676.1,2675.8,3.7372]
[1727537919959,6.13686152,2676.2,2675.8,3.7372]
[1727537920232,0.05941069,2676.1,2675.8,3.7372]
[1727537922028,0.05941069,2676.1,2675.6,5.29247026]
[1727537922215,0.05941069,2676.1,2675.7,6.11672267]
[1727537922411,0.05941069,2676.1,2675.8,0.95180107]
[1727537922645,0.8216,2675.9,2675.5,6.73758]
[1727537922844,4.55867,2675.9,2675.6,0.95185799]
[1727537923027,1.62857614,2675.8,2675.4,4.58659026]
[1727537923353,2.39082152,2675.6,2675.3,3.73788]
[1727537923865,0.05918642,2675.5,2675.2,0.8009]
[1727537924244,0.05918642,2675.5,2675.1,3.73804]
[1727537924567,0.05918642,2675.5,2675.0,3.73831]
[1727537924568,1.56922152,2675.4,2675.0,3.73831]
[1727537924717,0.05917841,2675.3,2675.1,0.95134745]
[1727537924917,1.56922152,2675.4,2675.0,3.73831]
[1727537925224,0.05917841,2675.3,2675.1,3.73815]
[1727537926036,1.56922152,2675.4,2675.1,3.73815]
[1727537926944,0.05917841,2675.3,2675.0,3.73829]
[1727537930480,0.05917841,2675.3,2674.9,5.18968556]
[1727537930784,0.05917841,2675.3,2675.1,3.73815]
[1727537933091,0.05917841,2675.3,2674.9,5.18968556]
[1727537933385,0.05917841,2675.3,2675.1,3.73817]
[1727537933748,0.772,2675.2,2675.0,3.73831]
[1727537934082,0.05826516,2675.1,2675.0,3.73831]
[1727537939485,2.38792152,2675.4,2674.9,3.73843]
[1727537939797,2.38792152,2675.4,2675.1,3.73816]
[1727537940646,0.05825714,2675.3,2675.1,3.73816]
[1727537943579,0.05825714,2675.3,2675.0,3.73831]
[1727537944961,0.05825714,2675.3,2675.1,3.73814]
[1727537946063,0.05825714,2675.3,2674.9,3.73832]
[1727537946264,0.05825714,2675.3,2675.0,3.73828]
[1727537951306,0.05825714,2675.3,2675.1,3.73815]
[1727537953690,0.05825714,2675.3,2675.0,3.73823]
[1727537961610,0.05825714,2675.3,2674.9,3.73832]
[1727537961611,0.05825714,2675.3,2674.9,7.47669]
[1727537961787,0.05825714,2675.3,2674.9,3.73832]
[1727537961983,0.05825714,2675.3,2674.9,7.47667]
[1727537962184,0.05825714,2675.3,2674.9,3.73832]
[1727537963511,0.05825714,2675.3,2674.9,7.47669]
[1727537963681,0.05825714,2675.3,2674.9,3.73832]
[1727537964718,0.05825714,2675.3,2674.9,7.4767]
[1727537965122,0.05825714,2675.3,2674.9,3.73832]
[1727537965412,0.05825714,2675.3,2674.9,7.4767]
[1727537965809,0.05825714,2675.3,2674.9,3.73832]
[1727537967896,1.56922152,2675.0,2674.6,3.73879]
[1727537968124,0.8218,2674.9,2674.5,3.7389]
[1727537968279,0.87773215,2674.9,2674.5,3.7389]
[1727537968493,0.87773215,2674.9,2674.7,3.73872]
[1727537970793,0.87773215,2674.9,2674.7,7.47737]
[1727537971131,0.87773215,2674.9,2674.7,3.73865]
[1727537971827,0.87773215,2674.9,2674.7,7.47731]
[1727537972623,0.87773215,2674.9,2674.7,3.73865]
[1727537973035,0.05593215,2674.9,2674.8,3.73859]
[1727537973239,0.05593215,2674.9,2674.7,3.73865]
[1727537973396,0.8218,2675.1,2674.7,3.73865]
[1727537973733,0.05549133,2675.0,2674.7,3.73865]
[1727537975328,0.05549133,2675.0,2674.7,7.47731]
[1727537975830,0.05549133,2675.0,2674.8,3.73857]
[1727537979432,0.05549133,2675.0,2674.7,3.73865]
[1727537979663,0.05549133,2675.0,2674.8,3.73859]
[1727537979945,0.05549133,2674.9,2674.8,3.73859]
[1727537980148,0.8218,2675.1,2674.8,3.73859]
[1727537980450,0.05549133,2674.9,2674.8,3.73859]
[1727537980615,0.8218,2675.1,2674.8,3.73859]
[1727537980820,0.05549133,2674.9,2674.8,3.73859]
[1727537981345,2.39072152,2675.4,2674.9,3.73835]
[1727537982064,6.12854152,2675.4,2674.9,3.73835]
[1727537983053,3.73791,2675.3,2674.8,3.73859]
[1727537983257,1.56922152,2675.2,2674.8,3.73859]
[1727537983422,0.8215,2675.1,2674.8,3.73859]
[1727537984048,0.8215,2675.1,2674.8,7.4771]
[1727537984523,0.8215,2675.1,2674.8,3.73851]
[1727537985545,0.05555547,2675.0,2674.8,3.73851]
[1727537985751,0.05555547,2675.0,2674.8,7.47701]
[1727537986059,0.05555547,2675.0,2674.8,3.7385]
[1727537986557,0.05555547,2675.0,2674.8,7.47702]
[1727537986863,0.05555547,2675.0,2674.8,3.7385]
[1727537987244,0.05555547,2675.0,2674.8,4.5702]
[1727537987447,0.8215,2675.3,2674.8,4.5702]
[1727537987621,0.05555547,2674.9,2674.8,4.5702]
[1727537987820,0.8215,2675.3,2674.8,4.5702]
[1727537988147,0.8215,2675.3,2674.9,3.73845]
[1727537988341,0.05555547,2675.2,2674.9,3.73845]
[1727537988766,0.8215,2675.3,2674.9,3.73845]
[1727537988964,0.05555547,2675.1,2674.9,3.73845]
[1727537989150,0.8215,2675.3,2674.9,3.73845]
[1727537989355,0.05555547,2675.0,2674.9,3.73845]
[1727537989563,0.8215,2675.3,2674.9,3.73845]
[1727537989872,0.05555547,2675.0,2674.9,3.73845]
[1727537990043,4.5594,2675.3,2674.9,3.73845]
[1727537990246,0.05555547,2675.0,2674.9,3.73845]
[1727537990727,4.5594,2675.3,2674.9,3.73845]
[1727537990931,0.05555547,2675.0,2674.9,3.73845]
[1727537991129,4.55913,2675.5,2674.8,4.57028]
[1727537991358,3.73782,2675.4,2674.9,3.73845]
[1727537991568,3.79337547,2675.4,2674.9,3.73845]
[1727537991774,3.73791,2675.3,2674.8,4.57028]
[1727537991943,3.73791,2675.3,2674.8,8.30886]
[1727537991944,6.29931322,2675.3,2674.8,8.30886]
[1727537992130,0.05555547,2675.2,2674.8,8.30886]
[1727537992336,5.30713152,2675.3,2674.8,8.30886]
[1727537992532,0.05555547,2675.1,2674.9,3.73844]
[1727537992781,1.56922152,2675.3,2674.9,3.73844]
[1727537992937,0.05555547,2675.0,2674.9,3.73844]